[Event "*** Titled Tuesday Blitz"]
[Site "Chess.com"]
[Date "2020.04.28"]
[Round "3"]
[White "indfraeng"]
[Black "warmoatmeal"]
[Result "1-0"]
[WhiteElo "2281"]
[BlackElo "1951"]
[TimeControl "180+1"]
[EndTime "10:28:19 PDT"]
[Termination "indfraeng won by resignation"]

1. d4 {[%clk 0:03:00.9]} 1... Nf6 {[%clk 0:02:58.9]} 2. c4 {[%clk 0:03:01.4]}
2... e6 {[%clk 0:02:59.3]} 3. g3 {[%clk 0:03:01.8]} 3... d5 {[%clk 0:02:59.4]}
4. Bg2 {[%clk 0:03:01.1]} 4... Be7 {[%clk 0:03:00.2]} 5. Nf3 {[%clk 0:02:59.6]}
5... O-O {[%clk 0:03:01]} 6. O-O {[%clk 0:02:58.4]} 6... dxc4 {[%clk 0:02:59.3]}
7. Ne5 {[%clk 0:02:54.5]} 7... c5 {[%clk 0:02:58.6]} 8. dxc5 {[%clk 0:02:52.4]}
8... Bxc5 {[%clk 0:02:57.6]} 9. Nxc4 {[%clk 0:02:52.4]} 9... Nc6 {[%clk
0:02:58.5]} 10. Nc3 {[%clk 0:02:52.1]} 10... Qe7 {[%clk 0:02:58.5]} 11. Bf4
{[%clk 0:02:50]} 11... Rd8 {[%clk 0:02:50.2]} 12. Qc1 {[%clk 0:02:48.7]} 12...
Bd7 {[%clk 0:02:50.4]} 13. a3 {[%clk 0:02:44.9]} 13... Rac8 {[%clk 0:02:47.9]}
14. b4 {[%clk 0:02:42.2]} 14... Bb6 {[%clk 0:02:48]} 15. Nxb6 {[%clk 0:02:41.1]}
15... axb6 {[%clk 0:02:48.1]} 16. Qb2 {[%clk 0:02:40]} 16... Nd4 {[%clk
0:02:46.3]} 17. e3 {[%clk 0:02:37.7]} 17... Nc6 {[%clk 0:02:12.3]} 18. Rfd1
{[%clk 0:02:33.5]} 18... Be8 {[%clk 0:02:10.4]} 19. Ne4 {[%clk 0:02:28.3]} 19...
Nd5 {[%clk 0:02:02.8]} 20. Bd6 {[%clk 0:02:10.2]} 20... Qd7 {[%clk 0:01:48.2]}
21. Be5 {[%clk 0:01:58.5]} 21... Nxe5 {[%clk 0:01:24.6]} 22. Qxe5 {[%clk
0:01:59.4]} 22... f6 {[%clk 0:01:25]} 23. Qb2 {[%clk 0:01:57.9]} 23... Qe7
{[%clk 0:01:23.2]} 24. Rac1 {[%clk 0:01:54]} 24... Ba4 {[%clk 0:01:23]} 25. Rxc8
{[%clk 0:01:50.2]} 25... Rxc8 {[%clk 0:01:23.9]} 26. Rc1 {[%clk 0:01:50.7]}
26... Qd8 {[%clk 0:01:16.9]} 27. h3 {[%clk 0:01:40.1]} 27... f5 {[%clk
0:00:58.8]} 28. Nd2 {[%clk 0:01:32.2]} 28... Bb5 {[%clk 0:00:51.8]} 29. Nb3
{[%clk 0:01:29]} 29... Ba6 {[%clk 0:00:35.7]} 30. Nd4 {[%clk 0:01:24.4]} 30...
e5 {[%clk 0:00:34.6]} 31. Bxd5+ {[%clk 0:01:14.8]} 31... Kh8 {[%clk 0:00:30.4]}
32. Rxc8 {[%clk 0:01:05.7]} 32... Qxc8 {[%clk 0:00:31.3]} 33. Nb3 {[%clk
0:00:54.5]} 33... Qd7 {[%clk 0:00:28.3]} 34. Qxe5 {[%clk 0:00:52.8]} 1-0

[Event "*** Titled Tuesday Blitz"]
[Site "Chess.com"]
[Date "2020.04.28"]
[Round "3"]
[White "The_Machine04"]
[Black "TudorAnton"]
[Result "0-1"]
[WhiteElo "2290"]
[BlackElo "2503"]
[TimeControl "180+1"]
[EndTime "10:28:22 PDT"]
[Termination "TudorAnton won on time"]

1. d4 {[%clk 0:03:00.9]} 1... Nf6 {[%clk 0:02:58.3]} 2. Bg5 {[%clk 0:03:00.2]}
2... c5 {[%clk 0:02:57.8]} 3. Bxf6 {[%clk 0:02:59.1]} 3... gxf6 {[%clk
0:02:57.2]} 4. d5 {[%clk 0:02:59]} 4... d6 {[%clk 0:02:57.8]} 5. c4 {[%clk
0:02:58.1]} 5... Qb6 {[%clk 0:02:57.3]} 6. Qc2 {[%clk 0:02:56.9]} 6... Bf5
{[%clk 0:02:56.1]} 7. Qa4+ {[%clk 0:02:51]} 7... Nd7 {[%clk 0:02:55.3]} 8. Qb3
{[%clk 0:02:44.3]} 8... Rg8 {[%clk 0:02:47.3]} 9. Nc3 {[%clk 0:02:42.9]} 9...
Qb4 {[%clk 0:02:45]} 10. Qxb4 {[%clk 0:02:35.5]} 10... cxb4 {[%clk 0:02:45.9]}
11. Nb5 {[%clk 0:02:35.5]} 11... Kd8 {[%clk 0:02:44.5]} 12. Nd4 {[%clk
0:02:31.3]} 12... Bg6 {[%clk 0:02:44.8]} 13. h4 {[%clk 0:02:26.3]} 13... h5
{[%clk 0:02:44]} 14. e3 {[%clk 0:02:07.7]} 14... Nc5 {[%clk 0:02:40.9]} 15. Ngf3
{[%clk 0:01:50.9]} 15... a5 {[%clk 0:02:40.5]} 16. Be2 {[%clk 0:01:42.7]} 16...
a4 {[%clk 0:02:38.9]} 17. O-O {[%clk 0:01:38.6]} 17... Bg7 {[%clk 0:02:35.6]}
18. Nd2 {[%clk 0:01:24.1]} 18... f5 {[%clk 0:02:31.3]} 19. f4 {[%clk 0:01:20.9]}
19... Bf6 {[%clk 0:02:19.9]} 20. g3 {[%clk 0:01:13.5]} 20... e5 {[%clk
0:02:19.1]} 21. fxe5 {[%clk 0:00:39.8]} 21... Bxe5 {[%clk 0:02:20]} 22. Kf2
{[%clk 0:00:39.7]} 22... a3 {[%clk 0:02:14.7]} 23. b3 {[%clk 0:00:37.2]} 23...
Kd7 {[%clk 0:02:12.1]} 24. Rg1 {[%clk 0:00:35.6]} 24... Rae8 {[%clk 0:02:12.5]}
25. Rae1 {[%clk 0:00:33.3]} 25... Bf6 {[%clk 0:02:09.9]} 26. Bf1 {[%clk
0:00:30.9]} 26... f4 {[%clk 0:02:08.9]} 27. N4f3 {[%clk 0:00:23]} 27... fxe3+
{[%clk 0:01:54.7]} 28. Rxe3 {[%clk 0:00:23.9]} 28... Rxe3 {[%clk 0:01:55.1]} 29.
Kxe3 {[%clk 0:00:24.8]} 29... Re8+ {[%clk 0:01:55.5]} 30. Kf2 {[%clk 0:00:25.3]}
30... Bc3 {[%clk 0:01:49.7]} 31. Bh3+ {[%clk 0:00:21.7]} 31... Kc7 {[%clk
0:01:49.4]} 32. Rd1 {[%clk 0:00:20.6]} 32... Nd3+ {[%clk 0:01:49.5]} 33. Kg2
{[%clk 0:00:20.3]} 33... Re2+ {[%clk 0:01:48.8]} 34. Kg1 {[%clk 0:00:17.8]}
34... Nb2 {[%clk 0:01:46.9]} 35. Bf1 {[%clk 0:00:16.6]} 35... Re3 {[%clk
0:01:38.4]} 36. Rc1 {[%clk 0:00:16.5]} 36... Nd3 {[%clk 0:01:33.6]} 37. Rd1
{[%clk 0:00:15.1]} 37... Nc5 {[%clk 0:01:31.9]} 38. Kf2 {[%clk 0:00:14.9]} 38...
Re8 {[%clk 0:01:31.7]} 39. Re1 {[%clk 0:00:14.4]} 39... Rxe1 {[%clk 0:01:29.2]}
40. Kxe1 {[%clk 0:00:15.3]} 40... Bb1 {[%clk 0:01:29.5]} 41. Kd1 {[%clk
0:00:14.3]} 41... Bxa2 {[%clk 0:01:29.6]} 42. Kc2 {[%clk 0:00:14.1]} 42... Bxb3+
{[%clk 0:01:28.1]} 43. Nxb3 {[%clk 0:00:14]} 43... a2 {[%clk 0:01:28.4]} 0-1

[Event "*** Titled Tuesday Blitz"]
[Site "Chess.com"]
[Date "2020.04.28"]
[Round "3"]
[White "josiwales"]
[Black "BocharovD"]
[Result "0-1"]
[WhiteElo "2601"]
[BlackElo "2803"]
[TimeControl "180+1"]
[EndTime "10:28:23 PDT"]
[Termination "BocharovD won on time"]

1. e4 {[%clk 0:03:00.9]} 1... c5 {[%clk 0:02:59.7]} 2. Nc3 {[%clk 0:03:00.4]}
2... Nc6 {[%clk 0:02:58.9]} 3. g3 {[%clk 0:03:01.3]} 3... g6 {[%clk 0:02:58.7]}
4. Bg2 {[%clk 0:03:01.8]} 4... Bg7 {[%clk 0:02:59.3]} 5. d3 {[%clk 0:03:02.7]}
5... d6 {[%clk 0:02:59.7]} 6. Be3 {[%clk 0:03:03.2]} 6... e5 {[%clk 0:02:54.2]}
7. Qd2 {[%clk 0:03:02.2]} 7... Nge7 {[%clk 0:02:54.3]} 8. Bh6 {[%clk 0:03:01.6]}
8... O-O {[%clk 0:02:54.3]} 9. h4 {[%clk 0:03:01.4]} 9... Bxh6 {[%clk
0:02:53.9]} 10. Qxh6 {[%clk 0:03:00.9]} 10... f6 {[%clk 0:02:54.3]} 11. Qd2
{[%clk 0:03:00.7]} 11... Nd4 {[%clk 0:02:50.1]} 12. Nge2 {[%clk 0:02:50.6]}
12... Bg4 {[%clk 0:02:46.4]} 13. Nxd4 {[%clk 0:02:30]} 13... cxd4 {[%clk
0:02:47.3]} 14. Ne2 {[%clk 0:02:30.7]} 14... Qb6 {[%clk 0:02:41.4]} 15. c4
{[%clk 0:02:26.2]} 15... dxc3 {[%clk 0:02:22.9]} 16. Nxc3 {[%clk 0:02:13.7]}
16... Rac8 {[%clk 0:02:18.5]} 17. O-O {[%clk 0:02:08.1]} 17... Be6 {[%clk
0:02:09.5]} 18. Kh2 {[%clk 0:02:03.9]} 18... Nc6 {[%clk 0:02:07.7]} 19. f4
{[%clk 0:01:57.3]} 19... Nd4 {[%clk 0:02:07]} 20. f5 {[%clk 0:01:43.9]} 20...
gxf5 {[%clk 0:02:04.9]} 21. exf5 {[%clk 0:01:44.8]} 21... Bxf5 {[%clk
0:01:55.6]} 22. Nd5 {[%clk 0:01:34.8]} 22... Qd8 {[%clk 0:01:55.1]} 23. Qh6
{[%clk 0:01:32.2]} 23... Rc2 {[%clk 0:01:47.2]} 24. Ne3 {[%clk 0:00:34.7]} 24...
Rxg2+ {[%clk 0:01:38.3]} 25. Kxg2 {[%clk 0:00:27.2]} 25... Bxd3 {[%clk 0:01:38]}
26. Rf2 {[%clk 0:00:22.1]} 26... f5 {[%clk 0:01:35.4]} 27. Kh2 {[%clk
0:00:18.7]} 27... Qe7 {[%clk 0:01:33.6]} 28. Nd5 {[%clk 0:00:18.1]} 28... Qf7
{[%clk 0:01:29.6]} 29. Qxd6 {[%clk 0:00:16.4]} 29... Be4 {[%clk 0:01:22.8]} 30.
Ne7+ {[%clk 0:00:12.8]} 30... Kg7 {[%clk 0:01:19]} 31. Qxe5+ {[%clk 0:00:12.9]}
31... Qf6 {[%clk 0:01:19.3]} 32. Qc5 {[%clk 0:00:02.1]} 32... Rf7 {[%clk
0:01:12.6]} 33. Raf1 {[%clk 0:00:01.1]} 33... Rxe7 {[%clk 0:01:08.9]} 34. b3
{[%clk 0:00:02]} 34... Nc6 {[%clk 0:01:03]} 0-1

[Event "*** Titled Tuesday Blitz"]
[Site "Chess.com"]
[Date "2020.04.28"]
[Round "3"]
[White "IMUffeVinther-Schou"]
[Black "Aikiigm"]
[Result "0-1"]
[WhiteElo "2265"]
[BlackElo "2518"]
[TimeControl "180+1"]
[EndTime "10:28:24 PDT"]
[Termination "Aikiigm won on time"]

1. e4 {[%clk 0:03:00.9]} 1... Nf6 {[%clk 0:02:58.8]} 2. Nc3 {[%clk 0:03:00.1]}
2... e5 {[%clk 0:02:57.4]} 3. Nf3 {[%clk 0:02:59]} 3... Bb4 {[%clk 0:02:57.5]}
4. Nxe5 {[%clk 0:02:57]} 4... Bxc3 {[%clk 0:02:57.1]} 5. dxc3 {[%clk 0:02:55.5]}
5... O-O {[%clk 0:02:57.3]} 6. Be2 {[%clk 0:02:50.1]} 6... Re8 {[%clk 0:02:56]}
7. Nd3 {[%clk 0:02:48.5]} 7... Nxe4 {[%clk 0:02:56]} 8. O-O {[%clk 0:02:47.7]}
8... d6 {[%clk 0:02:56.3]} 9. Nf4 {[%clk 0:02:40.9]} 9... Nd7 {[%clk 0:02:54.2]}
10. Be3 {[%clk 0:02:37]} 10... Ndf6 {[%clk 0:02:53.8]} 11. c4 {[%clk 0:02:24.2]}
11... b6 {[%clk 0:02:52.9]} 12. Nd5 {[%clk 0:02:17.6]} 12... Bb7 {[%clk
0:02:52.7]} 13. Bf3 {[%clk 0:02:11.4]} 13... h6 {[%clk 0:02:52.2]} 14. Re1
{[%clk 0:02:06.7]} 14... Rb8 {[%clk 0:02:51.3]} 15. Qd3 {[%clk 0:01:58.4]} 15...
Nxd5 {[%clk 0:02:43]} 16. cxd5 {[%clk 0:01:56.1]} 16... Nf6 {[%clk 0:02:39.2]}
17. c4 {[%clk 0:01:52.8]} 17... Qd7 {[%clk 0:02:39.1]} 18. Bd4 {[%clk 0:01:51]}
18... Ng4 {[%clk 0:02:37]} 19. Qc3 {[%clk 0:01:46.4]} 19... f6 {[%clk
0:02:32.6]} 20. Re6 {[%clk 0:01:27.7]} 20... Ne5 {[%clk 0:02:28.4]} 21. Bxe5
{[%clk 0:01:24.8]} 21... dxe5 {[%clk 0:02:26.3]} 22. Bg4 {[%clk 0:01:22.8]}
22... Bc8 {[%clk 0:02:23.1]} 23. Qg3 {[%clk 0:01:07.9]} 23... Qf7 {[%clk
0:02:18]} 24. Rc6 {[%clk 0:00:59.8]} 24... Bxg4 {[%clk 0:02:15.8]} 25. Qxg4
{[%clk 0:00:59.6]} 25... Rbd8 {[%clk 0:02:16.2]} 26. Rd1 {[%clk 0:00:57.2]}
26... Rd6 {[%clk 0:02:15.9]} 27. Rxd6 {[%clk 0:00:44.8]} 27... cxd6 {[%clk
0:02:16.8]} 28. Qf5 {[%clk 0:00:38.5]} 28... g6 {[%clk 0:02:15.6]} 29. Qc2
{[%clk 0:00:36.4]} 29... Kg7 {[%clk 0:02:13.6]} 30. Qa4 {[%clk 0:00:35.3]} 30...
Rc8 {[%clk 0:02:13.1]} 31. h3 {[%clk 0:00:31.7]} 31... f5 {[%clk 0:02:13.1]} 32.
Qa6 {[%clk 0:00:27.1]} 32... Qc7 {[%clk 0:02:12.1]} 33. Rc1 {[%clk 0:00:25.3]}
33... Kf6 {[%clk 0:02:08.7]} 34. b4 {[%clk 0:00:23.4]} 34... Kg7 {[%clk
0:02:03.5]} 35. a4 {[%clk 0:00:22.6]} 35... Qb8 {[%clk 0:02:00]} 36. c5 {[%clk
0:00:17.1]} 36... bxc5 {[%clk 0:01:57.9]} 37. bxc5 {[%clk 0:00:16]} 37... dxc5
{[%clk 0:01:55.8]} 38. d6 {[%clk 0:00:15]} 38... Rd8 {[%clk 0:01:56]} 39. Rd1
{[%clk 0:00:12.7]} 39... Qb6 {[%clk 0:01:56]} 40. Qe2 {[%clk 0:00:04.3]} 40...
Kf6 {[%clk 0:01:48.6]} 41. Qd2 {[%clk 0:00:04.2]} 41... Qc6 {[%clk 0:01:46.1]}
42. d7 {[%clk 0:00:03.3]} 42... g5 {[%clk 0:01:42.2]} 43. h4 {[%clk 0:00:02.5]}
43... c4 {[%clk 0:01:38.3]} 44. h5 {[%clk 0:00:02]} 44... c3 {[%clk 0:01:37.9]}
0-1

[Event "*** Titled Tuesday Blitz"]
[Site "Chess.com"]
[Date "2020.04.28"]
[Round "3"]
[White "GelmanAlexander"]
[Black "ChessQueen"]
[Result "1-0"]
[WhiteElo "2533"]
[BlackElo "2726"]
[TimeControl "180+1"]
[EndTime "10:28:25 PDT"]
[Termination "GelmanAlexander won by resignation"]

1. c4 {[%clk 0:03:00.9]} 1... e5 {[%clk 0:02:59.5]} 2. e3 {[%clk 0:03:00.6]}
2... Nf6 {[%clk 0:02:59.1]} 3. a3 {[%clk 0:03:00.7]} 3... d5 {[%clk 0:02:58.6]}
4. cxd5 {[%clk 0:03:00.7]} 4... Nxd5 {[%clk 0:02:59.5]} 5. Nf3 {[%clk
0:03:00.8]} 5... Bd6 {[%clk 0:02:53.6]} 6. d3 {[%clk 0:03:00.8]} 6... O-O {[%clk
0:02:48.6]} 7. Nbd2 {[%clk 0:03:00.5]} 7... Nc6 {[%clk 0:02:36.2]} 8. b4 {[%clk
0:03:00]} 8... Nce7 {[%clk 0:02:27.5]} 9. Bb2 {[%clk 0:02:59.4]} 9... Ng6 {[%clk
0:02:27.4]} 10. h4 {[%clk 0:02:59.4]} 10... h5 {[%clk 0:02:14]} 11. Be2 {[%clk
0:02:16.5]} 11... Bg4 {[%clk 0:02:11.9]} 12. Ne4 {[%clk 0:01:59.2]} 12... a5
{[%clk 0:02:04.7]} 13. b5 {[%clk 0:01:55.8]} 13... a4 {[%clk 0:01:59.6]} 14.
Nfg5 {[%clk 0:01:48.6]} 14... Qd7 {[%clk 0:01:42.2]} 15. Bxg4 {[%clk 0:01:24.1]}
15... hxg4 {[%clk 0:01:23.4]} 16. h5 {[%clk 0:01:18.3]} 16... Nge7 {[%clk
0:01:23.7]} 17. h6 {[%clk 0:01:16]} 17... g6 {[%clk 0:01:24.2]} 18. d4 {[%clk
0:01:01.6]} 18... Qxb5 {[%clk 0:01:11.9]} 19. Rb1 {[%clk 0:00:53.3]} 19... Qa5+
{[%clk 0:01:09.6]} 20. Kf1 {[%clk 0:00:51]} 20... Rad8 {[%clk 0:01:03.3]} 21.
dxe5 {[%clk 0:00:45.1]} 21... Bxe5 {[%clk 0:00:57.8]} 22. h7+ {[%clk 0:00:30.2]}
22... Kh8 {[%clk 0:00:57.9]} 23. Bxe5+ {[%clk 0:00:31.1]} 23... f6 {[%clk
0:00:57.5]} 24. Nxf6 {[%clk 0:00:20.4]} 24... Nxe3+ {[%clk 0:00:54.7]} 25. fxe3
{[%clk 0:00:12.7]} 25... Rxd1+ {[%clk 0:00:51.6]} 26. Rxd1 {[%clk 0:00:13.6]}
26... Qxe5 {[%clk 0:00:50]} 27. Nf7+ {[%clk 0:00:09.6]} 27... Kg7 {[%clk
0:00:44.2]} 28. Nxe5 {[%clk 0:00:08.6]} 28... Kxf6 {[%clk 0:00:43.3]} 29. Nd7+
{[%clk 0:00:08.1]} 1-0

[Event "*** Titled Tuesday Blitz"]
[Site "Chess.com"]
[Date "2020.04.28"]
[Round "3"]
[White "MasterKroket"]
[Black "BronceYSueno"]
[Result "1-0"]
[WhiteElo "2394"]
[BlackElo "2173"]
[TimeControl "180+1"]
[EndTime "10:28:25 PDT"]
[Termination "MasterKroket won by resignation"]

1. d4 {[%clk 0:03:00.9]} 1... Nf6 {[%clk 0:02:43.4]} 2. c4 {[%clk 0:02:59.7]}
2... g6 {[%clk 0:02:42.9]} 3. Nc3 {[%clk 0:02:59.8]} 3... Bg7 {[%clk 0:02:43.1]}
4. e4 {[%clk 0:02:59.9]} 4... O-O {[%clk 0:02:43.8]} 5. Nf3 {[%clk 0:03:00.5]}
5... d6 {[%clk 0:02:44.2]} 6. Be2 {[%clk 0:03:01.3]} 6... e5 {[%clk 0:02:42.2]}
7. d5 {[%clk 0:03:01.8]} 7... a5 {[%clk 0:02:41.9]} 8. O-O {[%clk 0:03:02.1]}
8... Na6 {[%clk 0:02:42.2]} 9. Bg5 {[%clk 0:03:02.6]} 9... h6 {[%clk 0:02:40.4]}
10. Bh4 {[%clk 0:03:02.4]} 10... Qe8 {[%clk 0:02:38.7]} 11. Nd2 {[%clk
0:03:02.2]} 11... Nd7 {[%clk 0:02:38.5]} 12. a3 {[%clk 0:02:53.7]} 12... Ndc5
{[%clk 0:02:26.4]} 13. b4 {[%clk 0:02:46.7]} 13... Nd7 {[%clk 0:02:25.3]} 14. f3
{[%clk 0:02:39.8]} 14... f5 {[%clk 0:02:24.5]} 15. Bf2 {[%clk 0:02:32]} 15... g5
{[%clk 0:02:23.6]} 16. exf5 {[%clk 0:02:31.2]} 16... Nf6 {[%clk 0:02:23.1]} 17.
g4 {[%clk 0:02:25.6]} 17... Bd7 {[%clk 0:02:20.3]} 18. Rb1 {[%clk 0:02:21.7]}
18... h5 {[%clk 0:02:19.8]} 19. Nde4 {[%clk 0:02:17.9]} 19... hxg4 {[%clk
0:02:18.1]} 20. fxg4 {[%clk 0:02:16.3]} 20... Bh6 {[%clk 0:02:11.7]} 21. Be3
{[%clk 0:02:14.2]} 21... Kh7 {[%clk 0:02:08.6]} 22. Nxg5+ {[%clk 0:02:09.1]}
22... Bxg5 {[%clk 0:02:08.2]} 23. Bxg5 {[%clk 0:02:10]} 23... Qf7 {[%clk
0:02:05.3]} 24. Qd2 {[%clk 0:02:06.5]} 24... Qg7 {[%clk 0:02:02.7]} 25. Bxf6
{[%clk 0:02:06.1]} 25... Qxf6 {[%clk 0:02:02]} 26. Ne4 {[%clk 0:02:06.2]} 26...
Qh4 {[%clk 0:02:01.7]} 27. Qg5 {[%clk 0:02:02.2]} 27... Qxg5 {[%clk 0:01:58.7]}
28. Nxg5+ {[%clk 0:02:03.1]} 28... Kh6 {[%clk 0:01:58.9]} 29. Ne4 {[%clk
0:02:00.4]} 29... Rg8 {[%clk 0:01:59]} 30. h4 {[%clk 0:01:57.8]} 30... Raf8
{[%clk 0:01:58.1]} 31. g5+ {[%clk 0:01:57.2]} 31... Kh7 {[%clk 0:01:58.6]} 32.
f6 {[%clk 0:01:51.6]} 32... Be8 {[%clk 0:01:50.5]} 33. Bg4 {[%clk 0:01:45.7]}
33... Bg6 {[%clk 0:01:50.5]} 34. Bf5 {[%clk 0:01:45.8]} 34... Bxf5 {[%clk
0:01:50.4]} 35. Rxf5 {[%clk 0:01:46.6]} 35... Kg6 {[%clk 0:01:51]} 36. Rf3
{[%clk 0:01:31.1]} 36... Rh8 {[%clk 0:01:50]} 37. Rh3 {[%clk 0:01:22.7]} 37...
Kf5 {[%clk 0:01:49.6]} 38. Nf2 {[%clk 0:01:13.6]} 38... e4 {[%clk 0:01:38.3]}
39. Rbb3 {[%clk 0:01:09]} 39... Rhg8 {[%clk 0:01:36.9]} 40. Kf1 {[%clk
0:01:06.7]} 40... Ke5 {[%clk 0:01:30.4]} 41. Ke2 {[%clk 0:01:06.3]} 41... Kd4
{[%clk 0:01:30.1]} 42. Rbe3 {[%clk 0:00:55.5]} 42... Kxc4 {[%clk 0:01:26.3]} 43.
Rxe4+ {[%clk 0:00:55.2]} 43... Kxd5 {[%clk 0:01:26.5]} 44. Rd3+ {[%clk
0:00:51.7]} 44... Kc6 {[%clk 0:01:26.1]} 45. Re7 {[%clk 0:00:48.2]} 45... axb4
{[%clk 0:01:23.6]} 46. axb4 {[%clk 0:00:48]} 46... Rh8 {[%clk 0:01:18.3]} 47.
Rd4 {[%clk 0:00:45]} 47... b5 {[%clk 0:00:58.1]} 48. f7 {[%clk 0:00:44.7]} 1-0

[Event "*** Titled Tuesday Blitz"]
[Site "Chess.com"]
[Date "2020.04.28"]
[Round "3"]
[White "KinKaiser"]
[Black "aspired"]
[Result "0-1"]
[WhiteElo "2503"]
[BlackElo "2740"]
[TimeControl "180+1"]
[EndTime "10:28:26 PDT"]
[Termination "aspired won by resignation"]

1. d4 {[%clk 0:03:00.9]} 1... Nf6 {[%clk 0:02:59.6]} 2. Nf3 {[%clk 0:03:01.1]}
2... e6 {[%clk 0:02:59.7]} 3. Bf4 {[%clk 0:03:01.3]} 3... d5 {[%clk 0:02:59.6]}
4. e3 {[%clk 0:03:01.6]} 4... c5 {[%clk 0:02:59.6]} 5. c3 {[%clk 0:03:01.5]}
5... Nc6 {[%clk 0:03:00.2]} 6. Nbd2 {[%clk 0:03:01.5]} 6... Be7 {[%clk
0:03:00.8]} 7. Ne5 {[%clk 0:02:57.7]} 7... Nxe5 {[%clk 0:03:00.1]} 8. Bxe5
{[%clk 0:02:57.9]} 8... O-O {[%clk 0:02:58.9]} 9. Bd3 {[%clk 0:02:57.5]} 9...
Bd6 {[%clk 0:02:53.2]} 10. f4 {[%clk 0:02:51]} 10... b6 {[%clk 0:02:46.8]} 11.
O-O {[%clk 0:02:49.8]} 11... a5 {[%clk 0:02:46.7]} 12. Qe2 {[%clk 0:02:45.9]}
12... Bb7 {[%clk 0:02:42.6]} 13. Bxf6 {[%clk 0:02:44.7]} 13... Qxf6 {[%clk
0:02:40.3]} 14. Nf3 {[%clk 0:02:44.3]} 14... cxd4 {[%clk 0:02:30.6]} 15. exd4
{[%clk 0:02:23.7]} 15... Qxf4 {[%clk 0:02:24.2]} 16. Ne5 {[%clk 0:02:20.6]}
16... Qh6 {[%clk 0:02:17.8]} 17. Rf3 {[%clk 0:02:13.3]} 17... g6 {[%clk
0:02:13.3]} 18. Rh3 {[%clk 0:01:58.1]} 18... Qg7 {[%clk 0:02:10.9]} 19. Nd7
{[%clk 0:01:43.9]} 19... Rfd8 {[%clk 0:02:03.5]} 20. Nxb6 {[%clk 0:01:42.6]}
20... Rab8 {[%clk 0:02:02.3]} 21. Na4 {[%clk 0:01:38]} 21... Bc6 {[%clk
0:01:57.6]} 22. Nc5 {[%clk 0:01:35.8]} 22... Bxc5 {[%clk 0:01:55.4]} 23. dxc5
{[%clk 0:01:36]} 23... e5 {[%clk 0:01:55.6]} 24. Qf2 {[%clk 0:01:22.2]} 24... e4
{[%clk 0:01:51.1]} 25. Bf1 {[%clk 0:01:19.2]} 25... d4 {[%clk 0:01:51.3]} 26.
cxd4 {[%clk 0:01:18.4]} 26... Qxd4 {[%clk 0:01:51.4]} 27. Qxd4 {[%clk
0:01:03.3]} 27... Rxd4 {[%clk 0:01:52.3]} 28. Rb3 {[%clk 0:01:02.1]} 28... Rbb4
{[%clk 0:01:28.1]} 29. Rxb4 {[%clk 0:00:47.5]} 29... axb4 {[%clk 0:01:29]} 30.
a4 {[%clk 0:00:46.6]} 30... bxa3 {[%clk 0:01:18.6]} 31. bxa3 {[%clk 0:00:44.4]}
31... f5 {[%clk 0:01:15.2]} 32. a4 {[%clk 0:00:43.1]} 32... Bxa4 {[%clk
0:01:08.8]} 33. Rb1 {[%clk 0:00:40.2]} 33... f4 {[%clk 0:00:58.5]} 34. Rc1
{[%clk 0:00:29.6]} 34... Bc6 {[%clk 0:00:54.4]} 35. Rb1 {[%clk 0:00:25.6]} 35...
e3 {[%clk 0:00:54.2]} 36. Rb6 {[%clk 0:00:23.9]} 36... Rd1 {[%clk 0:00:51.6]}
0-1

[Event "*** Titled Tuesday Blitz"]
[Site "Chess.com"]
[Date "2020.04.28"]
[Round "3"]
[White "PavelChernomordik"]
[Black "Lestofante90"]
[Result "0-1"]
[WhiteElo "2412"]
[BlackElo "2658"]
[TimeControl "180+1"]
[EndTime "10:28:28 PDT"]
[Termination "Lestofante90 won by resignation"]

1. e4 {[%clk 0:03:00.9]} 1... c6 {[%clk 0:02:58.2]} 2. Nc3 {[%clk 0:02:59.4]}
2... d5 {[%clk 0:02:58.4]} 3. Nf3 {[%clk 0:02:59.6]} 3... Bg4 {[%clk 0:02:54.7]}
4. h3 {[%clk 0:02:59.4]} 4... Bxf3 {[%clk 0:02:55.2]} 5. Qxf3 {[%clk 0:02:59.3]}
5... e6 {[%clk 0:02:56.1]} 6. Qg3 {[%clk 0:02:57.7]} 6... Nd7 {[%clk 0:02:51.6]}
7. d3 {[%clk 0:02:56.2]} 7... g6 {[%clk 0:02:50.4]} 8. Bd2 {[%clk 0:02:51.9]}
8... Bg7 {[%clk 0:02:50.1]} 9. f4 {[%clk 0:02:49.2]} 9... Ne7 {[%clk 0:02:49.1]}
10. h4 {[%clk 0:02:44]} 10... Qb6 {[%clk 0:02:46.5]} 11. O-O-O {[%clk
0:02:35.4]} 11... d4 {[%clk 0:02:42.9]} 12. Ne2 {[%clk 0:02:30.6]} 12... c5
{[%clk 0:02:42.8]} 13. h5 {[%clk 0:02:26.6]} 13... Nc6 {[%clk 0:02:42.7]} 14. f5
{[%clk 0:02:17.9]} 14... Be5 {[%clk 0:02:34]} 15. Bf4 {[%clk 0:02:15.6]} 15...
gxf5 {[%clk 0:02:24.9]} 16. exf5 {[%clk 0:02:11.7]} 16... O-O-O {[%clk
0:02:21.5]} 17. fxe6 {[%clk 0:02:08.7]} 17... fxe6 {[%clk 0:02:22.4]} 18. Qh3
{[%clk 0:02:04.2]} 18... Nb4 {[%clk 0:02:19.7]} 19. Kb1 {[%clk 0:01:55.2]} 19...
Nd5 {[%clk 0:02:19.3]} 20. Bxe5 {[%clk 0:01:52.5]} 20... Nxe5 {[%clk 0:02:20.2]}
21. Qg3 {[%clk 0:01:31.7]} 21... Qd6 {[%clk 0:02:15]} 22. Re1 {[%clk 0:01:23.5]}
22... Ne3 {[%clk 0:02:13.5]} 23. Nf4 {[%clk 0:01:14.1]} 23... Rhg8 {[%clk
0:02:12.6]} 24. Qh3 {[%clk 0:01:11.4]} 24... Rg4 {[%clk 0:02:10.5]} 25. g3
{[%clk 0:01:10.1]} 25... Rdg8 {[%clk 0:02:09.8]} 26. Be2 {[%clk 0:01:04.6]}
26... Rxg3 {[%clk 0:02:06.9]} 27. Qxe6+ {[%clk 0:01:04.2]} 27... Kc7 {[%clk
0:02:07.1]} 28. Qb3 {[%clk 0:01:01]} 28... a6 {[%clk 0:02:00.5]} 29. Ne6+ {[%clk
0:00:59.6]} 29... Kb8 {[%clk 0:02:00.8]} 30. Bd1 {[%clk 0:00:50.7]} 30... c4
{[%clk 0:01:59.8]} 31. dxc4 {[%clk 0:00:44.7]} 31... Qxe6 {[%clk 0:01:59.4]} 32.
c5 {[%clk 0:00:34.6]} 32... Qxb3 {[%clk 0:01:58.5]} 33. axb3 {[%clk 0:00:33.4]}
33... Nf3 {[%clk 0:01:58.5]} 34. Bxf3 {[%clk 0:00:30]} 34... Rxf3 {[%clk
0:01:59.4]} 35. Rh4 {[%clk 0:00:28.3]} 35... Ng2 {[%clk 0:01:52]} 36. Rg1 {[%clk
0:00:23.9]} 36... d3 {[%clk 0:01:49.9]} 37. cxd3 {[%clk 0:00:21.4]} 37... Rxd3
{[%clk 0:01:50.8]} 38. Rh2 {[%clk 0:00:20.4]} 38... Rdg3 {[%clk 0:01:50.3]} 39.
h6 {[%clk 0:00:18.8]} 39... Nf4 {[%clk 0:01:50]} 40. Rxg3 {[%clk 0:00:17.9]}
40... Rxg3 {[%clk 0:01:50.9]} 41. Rf2 {[%clk 0:00:18.2]} 41... Rg4 {[%clk
0:01:49.8]} 42. b4 {[%clk 0:00:16.4]} 42... Rh4 {[%clk 0:01:50]} 43. Ka2 {[%clk
0:00:14.7]} 43... Nd5 {[%clk 0:01:50]} 44. Rf5 {[%clk 0:00:12.5]} 44... Nxb4+
{[%clk 0:01:49.4]} 45. Kb3 {[%clk 0:00:12.8]} 45... Nc6 {[%clk 0:01:49.8]} 46.
Rf8+ {[%clk 0:00:11.9]} 46... Ka7 {[%clk 0:01:49.4]} 47. Rf6 {[%clk 0:00:12.6]}
47... Rh5 {[%clk 0:01:49.3]} 48. Kc4 {[%clk 0:00:11.2]} 48... a5 {[%clk
0:01:49.6]} 49. Kb5 {[%clk 0:00:10.3]} 49... Rh4 {[%clk 0:01:47.9]} 0-1